[Event "41st Jacques-Lemans-Open 2022"]
[Site "St. Veit/Glan"]
[Date "2022.07.12"]
[Round "5.10"]
[White "Novosel, Lovro"]
[Black "Feinig, Mario"]
[Result "0-1"]
[ECO "A96"]
[WhiteElo "2255"]
[BlackElo "2141"]
[Annotator "ChessBase"]
[PlyCount "94"]
[EventDate "2022.07.09"]
[EventType "swiss"]
[EventCountry "AUT"]
[SourceTitle "playchess.com"]
[Source "ChessBase"]
[SourceQuality "1"]
[TimeControl "40/5400+30:1800+30"]

1. Nf3 {[%emt 0:00:06]} f5 {[%emt 0:00:05]} 2. g3 {[%emt 0:00:08]} Nf6 {[%emt 0:00:21]} 3. Bg2 {[%emt 0:00:32]} d6 {[%emt 0:00:13]} 4. d4 {[%emt 0:00:07]} e6 {[%emt 0:00:08]} 5. O-O {[%emt 0:00:30]} Be7 6. c4 {[%emt 0:00:33]} O-O {[%emt 0:00:16]} 7. b3 {[%emt 0:00:19]} a5 {[%emt 0:00:53]} 8. a3 {[%emt 0:02:44]} a4 {[%emt 0:16:49]} 9. b4 {[%emt 0:03:53]} Ne4 {[%emt 0:00:14]} 10. Qc2 {[%emt 0:04:51]} Nd7 {[%emt 0:13:22]} 11. Bb2 {[%emt 0:15:30]} Ndf6 {[%emt 0:16:26]} 12. Nfd2 {[%emt 0:14:15]} d5 {[%emt 0:02:51]} 13. Nf3 {[%emt 0:05:51]} Bd7 {[%emt 0:12:44]} 14. Ne5 {[%emt 0:02:49]} Be8 {[%emt 0:00:18]} 15. Nc3 {[%emt 0:06:46]} Nxc3 {[%emt 0:01:33]} 16. Qxc3 {[%emt 0:00:43]} Ne4 {[%emt 0:01:58]} 17. Qc2 {[%emt 0:00:07]} Bf6 {[%emt 0:03:40]} 18. Rac1 {[%emt 0:08:33]} c6 {[%emt 0:00:11]} 19. Rfd1 {[%emt 0:05:22]} Nd6 {[%emt 0:03:46]} 20. cxd5 {[%emt 0:01:59]} cxd5 {[%emt 0:02:15]} 21. Nd3 {[%emt 0:05:07]} Bb5 {[%emt 0:02:47]} 22. Nf4 {[%emt 0:01:13]} Rc8 {[%emt 0:03:31]} 23. Qb1 {[%emt 0:01:38]} Qe7 {[%emt 0:00:24]} 24. f3 {[%emt 0:06:38]} Bg5 {[%emt 0:01:39]} 25. Rxc8 {[%emt 0:00:21]} Rxc8 {[%emt 0:00:03]} 26. e4 {[%emt 0:03:29]} Bxf4 {[%emt 0:01:54]} 27. gxf4 {[%emt 0:00:02]} Qh4 {[%emt 0:01:29]} 28. Re1 {[%emt 0:04:58]} Rc2 {[%emt 0:10:53]} 29. Rf1 {[%emt 0:00:36]} Bd3 {[%emt 0:00:50]} 30. Qd1 {[%emt 0:00:07]} fxe4 {[%emt 0:00:38]} 31. fxe4 {[%emt 0:00:55]} dxe4 {[%emt 0:00:03]} 32. Bc1 {[%emt 0:00:56]} Nf5 {[%emt 0:01:08]} 33. Bd2 {[%emt 0:00:45]} e3 {[%emt 0:01:55]} 34. Be1 {[%emt 0:00:07]} Rxg2+ {[%emt 0:00:05]} 35. Kxg2 {[%emt 0:00:16]} Bxf1+ {[%emt 0:00:03]} 36. Kxf1 {[%emt 0:00:08]} Qxh2 {[%emt 0:00:31]} 37. Qf3 {[%emt 0:00:05]} e2+ {[%emt 0:01:40]} 38. Qxe2 {[%emt 0:00:04]} Qxe2+ {[%emt 0:00:06]} 39. Kxe2 {[%emt 0:00:02]} Nxd4+ {[%emt 0:00:07]} 40. Kd3 {[%emt 0:00:04]} Nb5 {[%emt 0:00:25]} 41. Kc4 {[%emt 0:30:28]} Nxa3+ {[%emt 0:31:14]} 42. Kc5 {[%emt 0:00:10]} Nc2 {[%emt 0:00:00]} 43. Bc3 {[%emt 0:00:00]} h5 {[%emt 0:00:00]} 44. b5 {[%emt 0:00:00]} h4 {[%emt 0:00:00]} 45. f5 {[%emt 0:00:00]} exf5 {[%emt 0:00:00]} 46. Be5 {[%emt 0:00:00]} h3 {[%emt 0:00:00]} 47. Kb6 {[%emt 0:00:00]} Na3 {[%emt 0:00:00]} 0-1

[Event "41st Jacques-Lemans-Open 2022"]
[Site "St. Veit/Glan"]
[Date "2022.07.12"]
[Round "5.11"]
[White "Navaratnam, Rohan Shan Tze"]
[Black "Caruso, Augusto"]
[Result "1-0"]
[ECO "A96"]
[WhiteElo "2071"]
[BlackElo "2132"]
[Annotator "ChessBase"]
[PlyCount "77"]
[EventDate "2022.07.09"]
[EventType "swiss"]
[EventCountry "AUT"]
[SourceTitle "playchess.com"]
[Source "ChessBase"]
[SourceQuality "1"]
[TimeControl "40/5400+30:1800+30"]

1. d4 {[%emt 0:00:03]} f5 {[%emt 0:04:35]} 2. c4 {[%emt 0:00:07]} Nf6 {[%emt 0:00:05]} 3. g3 {[%emt 0:00:11]} e6 {[%emt 0:02:05]} 4. Bg2 {[%emt 0:00:03]} Be7 {[%emt 0:00:07]} 5. Nf3 {[%emt 0:00:07]} d6 {[%emt 0:00:04]} 6. O-O {[%emt 0:00:07]} O-O {[%emt 0:00:05]} 7. Nc3 {[%emt 0:00:14]} Ne4 {[%emt 0:02:28]} 8. Qc2 {[%emt 0:02:59]} Nxc3 {[%emt 0:01:46]} 9. Qxc3 {[%emt 0:00:27]} a5 {[%emt 0:00:32]} 10. a3 {[%emt 0:07:44]} a4 {[%emt 0:04:43]} 11. Re1 {[%emt 0:00:25]} Bf6 {[%emt 0:03:54]} 12. e4 {[%emt 0:01:54]} c5 {[%emt 0:02:51]} 13. exf5 {[%emt 0:04:37]} exf5 {[%emt 0:03:12]} 14. Be3 {[%emt 0:00:37]} Nc6 {[%emt 0:00:45]} 15. Qd3 {[%emt 0:02:58]} f4 {[%emt 0:07:02]} 16. Bxf4 {[%emt 0:04:08]} Nxd4 {[%emt 0:01:10]} 17. Nxd4 {[%emt 0:00:10]} Bxd4 {[%emt 0:00:08]} 18. Be4 {[%emt 0:01:30]} g6 {[%emt 0:21:09]} 19. Be3 {[%emt 0:09:20]} Bxb2 {[%emt 0:05:00]} 20. Rab1 {[%emt 0:01:00]} Bg7 {[%emt 0:07:33]} 21. Bxb7 {[%emt 0:04:29]} Bf5 {[%emt 0:06:09]} 22. Qd5+ {[%emt 0:02:51]} Kh8 {[%emt 0:00:08]} 23. Bxa8 {[%emt 0:00:09]} Qxa8 {[%emt 0:01:33]} 24. Qxa8 {[%emt 0:01:54]} Rxa8 {[%emt 0:00:01]} 25. Rb6 {[%emt 0:00:25]} d5 {[%emt 0:02:28]} 26. cxd5 {[%emt 0:03:47]} c4 {[%emt 0:01:36]} 27. Bf4 {[%emt 0:10:30]} c3 {[%emt 0:01:24]} 28. Rb8+ {[%emt 0:02:07]} Rxb8 {[%emt 0:00:01]} 29. Bxb8 {[%emt 0:00:02]} c2 {[%emt 0:05:11]} 30. Re8+ {[%emt 0:12:26]} Bf8 {[%emt 0:00:08]} 31. Be5+ {[%emt 0:00:43]} Kg8 {[%emt 0:00:03]} 32. Bb2 {[%emt 0:00:09]} Kf7 {[%emt 0:01:17]} 33. Ra8 {[%emt 0:00:02]} Bh6 {[%emt 0:15:19]} 34. f4 {[%emt 0:04:30]} Bd7 {[%emt 0:01:04]} 35. Ra7 {[%emt 0:01:39]} Ke8 {[%emt 0:00:36]} 36. Rc7 {[%emt 0:00:23]} Bf5 {[%emt 0:00:08]} 37. d6 {[%emt 0:00:19]} Bf8 {[%emt 0:01:28]} 38. Be5 {[%emt 0:00:03]} Be4 {[%emt 0:00:51]} 39. Kf2 {[%emt 0:00:53]} 1-0

[Event "41st Jacques-Lemans-Open 2022"]
[Site "St. Veit/Glan"]
[Date "2022.07.12"]
[Round "5.12"]
[White "Vojinov, Danijel"]
[Black "Hofstadler, Mario"]
[Result "1/2-1/2"]
[ECO "A00"]
[WhiteElo "2201"]
[BlackElo "2123"]
[Annotator "ChessBase"]
[PlyCount "119"]
[EventDate "2022.07.09"]
[EventType "swiss"]
[EventCountry "AUT"]
[SourceTitle "playchess.com"]
[Source "ChessBase"]
[SourceQuality "1"]
[TimeControl "40/5400+30:1800+30"]

1. b4 {[%emt 0:00:04]} e5 {[%emt 0:01:39]} 2. Bb2 {[%emt 0:00:44]} Bxb4 {[%emt 0:02:13]} 3. Bxe5 {[%emt 0:00:13]} Nf6 {[%emt 0:00:35]} 4. c3 {[%emt 0:00:11]} Be7 {[%emt 0:01:26]} 5. d4 {[%emt 0:00:07]} d5 {[%emt 0:01:01]} 6. Bxf6 {[%emt 0:00:20]} Bxf6 {[%emt 0:00:11]} 7. e3 {[%emt 0:00:07]} c5 {[%emt 0:01:50]} 8. Bd3 {[%emt 0:00:42]} Nc6 {[%emt 0:00:33]} 9. Nd2 {[%emt 0:01:09]} c4 {[%emt 0:03:33]} 10. Bc2 {[%emt 0:02:05]} Rb8 {[%emt 0:05:11]} 11. a4 {[%emt 0:03:50]} a6 {[%emt 0:01:54]} 12. Ne2 {[%emt 0:03:01]} b5 {[%emt 0:03:29]} 13. axb5 {[%emt 0:02:08]} axb5 {[%emt 0:00:33]} 14. e4 {[%emt 0:00:42]} O-O {[%emt 0:02:29]} 15. O-O {[%emt 0:02:20]} b4 {[%emt 0:04:39]} 16. exd5 {[%emt 0:07:04]} Qxd5 {[%emt 0:04:01]} 17. cxb4 {[%emt 0:08:25]} Nxd4 {[%emt 0:14:03]} 18. Ra5 {[%emt 0:09:07]} Nxe2+ {[%emt 0:13:27]} 19. Qxe2 {[%emt 0:01:14]} Qe6 {[%emt 0:02:19]} 20. Qxc4 {[%emt 0:07:30]} Qxc4 {[%emt 0:01:02]} 21. Nxc4 {[%emt 0:00:11]} Rxb4 {[%emt 0:01:13]} 22. Nd6 {[%emt 0:04:51]} Be6 {[%emt 0:03:01]} 23. Ne4 {[%emt 0:08:32]} Bd8 {[%emt 0:10:07]} 24. Ra3 {[%emt 0:03:53]} Rb2 {[%emt 0:02:18]} 25. Bd3 {[%emt 0:02:57]} h6 {[%emt 0:03:09]} 26. Rb1 {[%emt 0:04:19]} Rxb1+ {[%emt 0:01:06]} 27. Bxb1 {[%emt 0:00:02]} Be7 {[%emt 0:01:10]} 28. Ra7 {[%emt 0:02:22]} Rc8 {[%emt 0:06:06]} 29. Bd3 {[%emt 0:03:21]} Rc1+ {[%emt 0:01:30]} 30. Bf1 {[%emt 0:00:24]} Bg5 {[%emt 0:02:40]} 31. Ra4 {[%emt 0:05:53]} Bd7 {[%emt 0:04:15]} 32. Rb4 {[%emt 0:02:40]} Be6 {[%emt 0:01:30]} 33. h3 {[%emt 0:01:46]} Be7 {[%emt 0:00:41]} 34. Ra4 {[%emt 0:01:12]} g6 {[%emt 0:02:03]} 35. Ng3 {[%emt 0:01:52]} Bd6 {[%emt 0:00:13]} 36. Ne2 {[%emt 0:01:21]} Rb1 {[%emt 0:00:48]} 37. Re4 {[%emt 0:05:15]} Kg7 {[%emt 0:00:27]} 38. Nc3 {[%emt 0:02:38]} Rc1 {[%emt 0:00:17]} 39. Ne2 {[%emt 0:00:55]} Rb1 {[%emt 0:00:05]} 40. Nc3 {[%emt 0:00:15]} Rc1 {[%emt 0:00:29]} 41. Ne2 {[%emt 0:30:31]} Ra1 {[%emt 0:30:46]} 42. Nc3 {[%emt 0:03:10]} Bf5 {[%emt 0:00:00]} 43. Ra4 {[%emt 0:00:00]} Re1 {[%emt 0:00:00]} 44. Ra2 {[%emt 0:00:00]} Be6 {[%emt 0:00:00]} 45. Ra4 {[%emt 0:00:00]} Bf5 {[%emt 0:00:00]} 46. Ra2 {[%emt 0:00:00]} Be6 {[%emt 0:00:00]} 47. Ra4 {[%emt 0:00:00]} h5 {[%emt 0:01:14]} 48. Re4 {[%emt 0:00:00]} Rc1 {[%emt 0:00:18]} 49. Ne2 {[%emt 0:00:00]} Ra1 {[%emt 0:00:17]} 50. Nc3 {[%emt 0:00:00]} Bf5 {[%emt 0:00:20]} 51. Ra4 {[%emt 0:00:00]} Re1 {[%emt 0:00:12]} 52. Ra2 {[%emt 0:00:00]} Be6 {[%emt 0:02:42]} 53. Ra4 {[%emt 0:00:00]} Bf5 {[%emt 0:00:13]} 54. Ra2 {[%emt 0:00:00]} Bd3 {[%emt 0:01:03]} 55. Ne2 {[%emt 0:00:00]} h4 {[%emt 0:01:07]} 56. Rd2 {[%emt 0:00:00]} Bxe2 {[%emt 0:00:24]} 57. Rxe2 {[%emt 0:00:00]} Rd1 {[%emt 0:00:18]} 58. Re3 {[%emt 0:00:00]} f6 {[%emt 0:00:35]} 59. Rd3 {[%emt 0:00:00]} Rxd3 {[%emt 0:00:38]} 60. Bxd3 {[%emt 0:00:00]} 1/2-1/2

[Event "41st Jacques-Lemans-Open 2022"]
[Site "St. Veit/Glan"]
[Date "2022.07.12"]
[Round "5.13"]
[White "Bauer, Thomas"]
[Black "Hng, Mei-En Emmanuelle"]
[Result "1-0"]
[ECO "E91"]
[WhiteElo "2228"]
[BlackElo "1997"]
[Annotator "ChessBase"]
[PlyCount "65"]
[EventDate "2022.07.09"]
[EventType "swiss"]
[EventCountry "AUT"]
[SourceTitle "playchess.com"]
[Source "ChessBase"]
[SourceQuality "1"]
[TimeControl "40/5400+30:1800+30"]

1. d4 {[%emt 0:00:03]} d6 {[%emt 0:04:00]} 2. Nf3 {[%emt 0:02:13]} Nf6 {[%emt 0:00:31]} 3. c4 {[%emt 0:00:03]} g6 {[%emt 0:00:33]} 4. Nc3 {[%emt 0:00:47]} Bg7 {[%emt 0:00:43]} 5. e4 {[%emt 0:00:02]} O-O {[%emt 0:01:22]} 6. Be2 {[%emt 0:00:03]} Na6 {[%emt 0:01:01]} 7. O-O {[%emt 0:07:46]} c5 {[%emt 0:01:01]} 8. d5 {[%emt 0:00:03]} Nc7 {[%emt 0:03:00]} 9. h3 {[%emt 0:01:13]} e6 {[%emt 0:06:34]} 10. a4 {[%emt 0:01:45]} exd5 {[%emt 0:06:55]} 11. exd5 {[%emt 0:09:10]} Bf5 {[%emt 0:10:10]} 12. g4 {[%emt 0:12:22]} Bd7 {[%emt 0:05:02]} 13. Bg5 {[%emt 0:00:52]} h6 {[%emt 0:10:12]} 14. Bf4 {[%emt 0:04:52]} Nfe8 {[%emt 0:05:56]} 15. Bd3 {[%emt 0:09:32]} Na6 {[%emt 0:01:40]} 16. Ra3 {[%emt 0:05:00]} Nb4 {[%emt 0:02:11]} 17. Bb1 {[%emt 0:00:03]} h5 {[%emt 0:12:19]} 18. Nh2 {[%emt 0:10:46]} Bd4 {[%emt 0:08:14]} 19. Qd2 {[%emt 0:04:24]} hxg4 {[%emt 0:02:44]} 20. Ne2 {[%emt 0:02:47]} Bg7 {[%emt 0:04:53]} 21. hxg4 {[%emt 0:01:14]} Qf6 {[%emt 0:00:40]} 22. Rc3 {[%emt 0:02:51]} Qh4 {[%emt 0:01:19]} 23. Rg3 {[%emt 0:03:28]} Nf6 {[%emt 0:02:04]} 24. Kg2 {[%emt 0:05:37]} Qh8 {[%emt 0:02:55]} 25. Rh1 {[%emt 0:02:20]} Rfe8 {[%emt 0:03:03]} 26. Nf3 {[%emt 0:01:44]} Qxh1+ {[%emt 0:01:39]} 27. Kxh1 {[%emt 0:00:03]} Nxg4 {[%emt 0:01:18]} 28. Kg2 {[%emt 0:01:26]} Ne5 {[%emt 0:00:40]} 29. Nxe5 {[%emt 0:00:55]} dxe5 {[%emt 0:00:28]} 30. Bh6 {[%emt 0:00:56]} Bh8 {[%emt 0:00:31]} 31. Qg5 {[%emt 0:00:36]} e4 {[%emt 0:00:13]} 32. Qh5 {[%emt 0:02:53]} Re5 {[%emt 0:00:16]} 33. Rxg6+ {[%emt 0:00:26]} 1-0

[Event "41st Jacques-Lemans-Open 2022"]
[Site "St. Veit/Glan"]
[Date "2022.07.12"]
[Round "5.14"]
[White "Bethke, Robert"]
[Black "Bauer, Sebastian"]
[Result "1-0"]
[ECO "E97"]
[WhiteElo "2070"]
[BlackElo "2380"]
[Annotator "ChessBase"]
[PlyCount "111"]
[EventDate "2022.07.09"]
[EventType "swiss"]
[EventCountry "AUT"]
[SourceTitle "playchess.com"]
[Source "ChessBase"]
[SourceQuality "1"]
[TimeControl "40/5400+30:1800+30"]

1. d4 {[%emt 0:00:04]} Nf6 {[%emt 0:00:06]} 2. c4 {[%emt 0:00:03]} g6 {[%emt 0:00:08]} 3. Nc3 {[%emt 0:00:03]} Bg7 {[%emt 0:00:07]} 4. Nf3 {[%emt 0:00:13]} O-O {[%emt 0:00:08]} 5. e4 {[%emt 0:00:06]} d6 {[%emt 0:00:05]} 6. Be2 {[%emt 0:00:05]} e5 {[%emt 0:00:08]} 7. O-O {[%emt 0:00:16]} Nc6 {[%emt 0:02:47]} 8. d5 {[%emt 0:00:03]} Ne7 {[%emt 0:00:07]} 9. b4 {[%emt 0:00:20]} Nh5 {[%emt 0:00:11]} 10. c5 {[%emt 0:00:57]} f5 {[%emt 0:14:52]} 11. cxd6 {[%emt 0:06:15]} cxd6 {[%emt 0:00:32]} 12. a4 {[%emt 0:00:36]} Nf6 {[%emt 0:02:33]} 13. Nd2 {[%emt 0:02:12]} Bh6 {[%emt 0:03:51]} 14. Bf3 {[%emt 0:04:58]} Bxd2 {[%emt 0:11:17]} 15. Qxd2 {[%emt 0:04:28]} f4 {[%emt 0:00:15]} 16. Ba3 {[%emt 0:01:53]} g5 {[%emt 0:00:44]} 17. Be2 {[%emt 0:00:19]} g4 {[%emt 0:04:13]} 18. f3 {[%emt 0:04:46]} g3 {[%emt 0:15:25]} 19. hxg3 {[%emt 0:02:13]} fxg3 {[%emt 0:05:26]} 20. f4 {[%emt 0:04:20]} Qb6+ {[%emt 0:09:31]} 21. Kh1 {[%emt 0:00:16]} Qd4 {[%emt 0:00:23]} 22. Rad1 {[%emt 0:01:20]} Qxd2 {[%emt 0:06:30]} 23. Rxd2 {[%emt 0:00:05]} exf4 {[%emt 0:00:16]} 24. Rxf4 {[%emt 0:00:16]} Ng6 {[%emt 0:09:07]} 25. Rf3 {[%emt 0:03:46]} Bg4 {[%emt 0:01:23]} 26. Rxg3 {[%emt 0:01:06]} Bxe2 {[%emt 0:02:10]} 27. Rxe2 {[%emt 0:00:13]} Nh5 {[%emt 0:01:33]} 28. Rg5 {[%emt 0:05:16]} Rf1+ {[%emt 0:00:16]} 29. Kh2 {[%emt 0:00:03]} Nhf4 {[%emt 0:00:23]} 30. Re3 {[%emt 0:00:30]} Rc8 {[%emt 0:04:01]} 31. b5 {[%emt 0:09:16]} h6 {[%emt 0:01:02]} 32. Rg4 {[%emt 0:07:55]} Rd8 {[%emt 0:00:30]} 33. Ne2 {[%emt 0:03:32]} Kf7 {[%emt 0:01:43]} 34. Nxf4 {[%emt 0:07:11]} Nxf4 {[%emt 0:00:09]} 35. Reg3 {[%emt 0:01:43]} Nh5 {[%emt 0:00:44]} 36. Rc3 {[%emt 0:06:14]} Rd7 {[%emt 0:00:36]} 37. Rf3+ {[%emt 0:00:50]} Rxf3 {[%emt 0:00:02]} 38. gxf3 {[%emt 0:00:01]} b6 {[%emt 0:01:50]} 39. Rg2 {[%emt 0:01:27]} Nf4 {[%emt 0:02:13]} 40. Rc2 {[%emt 0:00:47]} Nd3 {[%emt 0:01:00]} 41. Rc6 {[%emt 0:32:09]} Ke7 {[%emt 0:02:35]} 42. Kg3 {[%emt 0:00:00]} h5 {[%emt 0:01:34]} 43. Kh4 {[%emt 0:00:00]} Ne5 {[%emt 0:01:57]} 44. f4 {[%emt 0:00:00]} Nxc6 {[%emt 0:01:12]} 45. dxc6 {[%emt 0:00:00]} Rd8 {[%emt 0:01:06]} 46. e5 {[%emt 0:00:00]} Rg8 {[%emt 0:00:25]} 47. Bxd6+ {[%emt 0:00:00]} Ke6 {[%emt 0:02:19]} 48. Kxh5 {[%emt 0:00:00]} Kf5 {[%emt 0:10:51]} 49. Kh6 {[%emt 0:00:00]} Kxf4 {[%emt 0:00:28]} 50. Kh7 {[%emt 0:00:00]} Rd8 {[%emt 0:00:53]} 51. Kg6 {[%emt 0:00:00]} Ke4 {[%emt 0:01:18]} 52. Kf6 {[%emt 0:00:00]} Kd5 {[%emt 0:00:16]} 53. Ke7 {[%emt 0:00:00]} Rh8 {[%emt 0:00:25]} 54. c7 {[%emt 0:00:00]} a6 {[%emt 0:00:43]} 55. Kd7 {[%emt 0:00:00]} axb5 {[%emt 0:00:09]} 56. axb5 {[%emt 0:00:00]} 1-0

[Event "41st Jacques-Lemans-Open 2022"]
[Site "St. Veit/Glan"]
[Date "2022.07.12"]
[Round "5.15"]
[White "Zoernpfenning, Siegfried"]
[Black "Dotzer, Lukas"]
[Result "1/2-1/2"]
[ECO "A45"]
[WhiteElo "2114"]
[BlackElo "2269"]
[Annotator "ChessBase"]
[PlyCount "70"]
[EventDate "2022.07.09"]
[EventType "swiss"]
[EventCountry "AUT"]
[SourceTitle "playchess.com"]
[Source "ChessBase"]
[SourceQuality "1"]
[TimeControl "40/5400+30:1800+30"]

1. d4 {[%emt 0:00:02]} Nf6 {[%emt 0:00:06]} 2. Bf4 {[%emt 0:00:07]} d5 {[%emt 0:00:05]} 3. e3 {[%emt 0:00:12]} c5 {[%emt 0:00:22]} 4. c3 {[%emt 0:00:53]} Nc6 {[%emt 0:00:38]} 5. Nd2 {[%emt 0:00:41]} e6 {[%emt 0:01:08]} 6. Ngf3 {[%emt 0:01:26]} Be7 {[%emt 0:01:31]} 7. Ne5 {[%emt 0:02:18]} Nxe5 {[%emt 0:03:20]} 8. dxe5 {[%emt 0:00:14]} Nd7 {[%emt 0:00:26]} 9. Bd3 {[%emt 0:01:51]} g5 {[%emt 0:06:25]} 10. Bg3 {[%emt 0:01:10]} h5 {[%emt 0:03:44]} 11. h3 {[%emt 0:00:58]} Qc7 {[%emt 0:05:09]} 12. e4 {[%emt 0:01:08]} Qc6 {[%emt 0:13:02]} 13. exd5 {[%emt 0:02:50]} exd5 {[%emt 0:00:54]} 14. c4 {[%emt 0:01:01]} dxc4 {[%emt 0:07:08]} 15. Be4 {[%emt 0:02:03]} Qa6 {[%emt 0:03:05]} 16. Qf3 {[%emt 0:06:20]} Qe6 {[%emt 0:08:20]} 17. Qe2 {[%emt 0:06:55]} f5 {[%emt 0:04:22]} 18. exf6 {[%emt 0:00:36]} Nxf6 {[%emt 0:00:21]} 19. O-O-O {[%emt 0:00:58]} O-O {[%emt 0:12:01]} 20. Rhe1 {[%emt 0:00:19]} c3 {[%emt 0:01:44]} 21. bxc3 {[%emt 0:00:51]} Qxa2 {[%emt 0:00:57]} 22. Bd3 {[%emt 0:01:42]} Rf7 {[%emt 0:04:55]} 23. Qe5 {[%emt 0:00:59]} Nd5 {[%emt 0:05:46]} 24. Bc4 {[%emt 0:05:37]} Qa3+ {[%emt 0:03:56]} 25. Kc2 {[%emt 0:00:32]} Bf6 {[%emt 0:02:20]} 26. Nb1 {[%emt 0:05:19]} Qa4+ {[%emt 0:01:49]} 27. Bb3 {[%emt 0:00:13]} Bxe5 {[%emt 0:00:38]} 28. Bxa4 {[%emt 0:00:27]} Bf5+ {[%emt 0:02:03]} 29. Kb2 {[%emt 0:00:58]} Bxg3 {[%emt 0:01:42]} 30. Rxd5 {[%emt 0:00:43]} Bxf2 {[%emt 0:02:40]} 31. Ree5 {[%emt 0:02:20]} Raf8 {[%emt 0:02:15]} 32. g4 {[%emt 0:01:06]} hxg4 {[%emt 0:01:02]} 33. hxg4 {[%emt 0:00:10]} Bxb1 {[%emt 0:01:00]} 34. Rxg5+ {[%emt 0:00:10]} Rg7 {[%emt 0:00:28]} 35. Kxb1 {[%emt 0:00:46]} Rxg5 1/2-1/2

[Event "41st Jacques-Lemans-Open 2022"]
[Site "St. Veit/Glan"]
[Date "2022.07.12"]
[Round "5.16"]
[White "Moeller, Dustin"]
[Black "Miazhynski, Michael"]
[Result "1/2-1/2"]
[ECO "D91"]
[WhiteElo "2237"]
[BlackElo "1994"]
[Annotator "ChessBase"]
[PlyCount "110"]
[EventDate "2022.07.09"]
[EventType "swiss"]
[EventCountry "AUT"]
[SourceTitle "playchess.com"]
[Source "ChessBase"]
[SourceQuality "1"]
[TimeControl "40/5400+30:1800+30"]

1. c4 {[%emt 0:00:03]} Nf6 {[%emt 0:00:09]} 2. Nc3 {[%emt 0:00:08]} d5 {[%emt 0:00:09]} 3. d4 {[%emt 0:00:34]} g6 {[%emt 0:00:12]} 4. Nf3 {[%emt 0:00:06]} Bg7 {[%emt 0:00:06]} 5. Bg5 {[%emt 0:00:06]} Ne4 {[%emt 0:03:02]} 6. Bf4 {[%emt 0:00:07]} Nxc3 {[%emt 0:03:26]} 7. bxc3 {[%emt 0:00:06]} O-O {[%emt 0:00:34]} 8. e3 {[%emt 0:00:07]} c5 {[%emt 0:00:49]} 9. cxd5 {[%emt 0:00:05]} Qxd5 {[%emt 0:00:31]} 10. Be2 {[%emt 0:00:09]} Nc6 {[%emt 0:00:58]} 11. O-O {[%emt 0:00:09]} Rd8 {[%emt 0:29:26]} 12. Qb1 {[%emt 0:16:08]} b6 {[%emt 0:06:44]} 13. e4 {[%emt 0:07:12]} Qd7 {[%emt 0:06:19]} 14. Bb5 {[%emt 0:09:06]} a6 {[%emt 0:09:47]} 15. Bxc6 {[%emt 0:00:18]} Qxc6 {[%emt 0:00:02]} 16. d5 {[%emt 0:00:47]} Qb7 {[%emt 0:02:39]} 17. Ne5 {[%emt 0:02:20]} e6 {[%emt 0:02:35]} 18. c4 {[%emt 0:13:39]} b5 {[%emt 0:03:50]} 19. Qc2 {[%emt 0:03:32]} exd5 {[%emt 0:02:03]} 20. cxd5 {[%emt 0:00:17]} c4 {[%emt 0:00:36]} 21. Rab1 {[%emt 0:00:49]} f5 {[%emt 0:03:58]} 22. Nxc4 {[%emt 0:01:05]} fxe4 {[%emt 0:00:41]} 23. Ne3 {[%emt 0:11:51]} Qe7 {[%emt 0:06:39]} 24. d6 {[%emt 0:06:03]} Qe6 {[%emt 0:03:06]} 25. a4 {[%emt 0:03:18]} Bd7 {[%emt 0:00:33]} 26. Rb4 {[%emt 0:03:32]} Re8 {[%emt 0:00:29]} 27. Rd1 {[%emt 0:05:35]} Rac8 {[%emt 0:00:49]} 28. Qb1 {[%emt 0:04:48]} Rc5 {[%emt 0:00:14]} 29. axb5 {[%emt 0:01:39]} axb5 {[%emt 0:00:09]} 30. Rc1 {[%emt 0:02:20]} Bc3 {[%emt 0:01:45]} 31. Rxc3 {[%emt 0:04:18]} Rxc3 {[%emt 0:00:08]} 32. h3 {[%emt 0:00:14]} Rc5 {[%emt 0:03:56]} 33. Qb2 {[%emt 0:00:38]} g5 {[%emt 0:00:43]} 34. Bg3 {[%emt 0:00:49]} h5 {[%emt 0:01:52]} 35. h4 {[%emt 0:00:31]} gxh4 {[%emt 0:00:37]} 36. Bxh4 {[%emt 0:00:32]} Qxd6 {[%emt 0:01:29]} 37. Rd4 {[%emt 0:00:10]} Qe6 {[%emt 0:03:44]} 38. Qd2 {[%emt 0:00:04]} Bc6 {[%emt 0:01:36]} 39. Rd6 {[%emt 0:00:06]} Qf7 {[%emt 0:01:17]} 40. Rf6 {[%emt 0:04:48]} Qd7 {[%emt 0:01:32]} 41. Rd6 {[%emt 0:02:35]} Qf7 {[%emt 0:08:34]} 42. Qd4 {[%emt 0:02:36]} Rc1+ {[%emt 0:03:07]} 43. Kh2 {[%emt 0:00:06]} Re6 {[%emt 0:00:47]} 44. Rd8+ {[%emt 0:08:44]} Be8 {[%emt 0:04:54]} 45. Nd5 {[%emt 0:00:07]} Rcc6 {[%emt 0:01:07]} 46. Qb4 {[%emt 0:04:11]} Kh7 {[%emt 0:03:29]} 47. Qxb5 {[%emt 0:01:57]} Rc8 {[%emt 0:05:23]} 48. Qa5 {[%emt 0:02:15]} Rxd8 {[%emt 0:01:06]} 49. Qxd8 {[%emt 0:00:02]} Bc6 {[%emt 0:00:51]} 50. Ne3 {[%emt 0:04:09]} Rg6 {[%emt 0:00:21]} 51. Qb8 {[%emt 0:02:00]} Qd7 {[%emt 0:00:48]} 52. Bg3 {[%emt 0:00:54]} Qf7 {[%emt 0:02:09]} 53. Qe5 {[%emt 0:00:46]} Re6 {[%emt 0:00:36]} 54. Qg5 {[%emt 0:00:22]} Rg6 {[%emt 0:00:18]} 55. Qe5 {[%emt 0:00:30]} Re6 {[%emt 0:00:24]} 1/2-1/2

[Event "41st Jacques-Lemans-Open 2022"]
[Site "St. Veit/Glan"]
[Date "2022.07.12"]
[Round "5.17"]
[White "Gschiel, Alexander"]
[Black "Markun, Ozbej"]
[Result "1-0"]
[ECO "E92"]
[WhiteElo "2215"]
[BlackElo "1915"]
[Annotator "ChessBase"]
[PlyCount "49"]
[EventDate "2022.07.09"]
[EventType "swiss"]
[EventCountry "AUT"]
[SourceTitle "playchess.com"]
[Source "ChessBase"]
[SourceQuality "1"]
[TimeControl "40/5400+30:1800+30"]

1. d4 {[%emt 0:00:05]} Nf6 {[%emt 0:00:23]} 2. c4 {[%emt 0:00:19]} g6 {[%emt 0:00:28]} 3. Nc3 {[%emt 0:00:32]} Bg7 {[%emt 0:00:10]} 4. e4 {[%emt 0:00:17]} d6 {[%emt 0:00:15]} 5. Be2 {[%emt 0:00:30]} O-O {[%emt 0:00:21]} 6. Nf3 {[%emt 0:00:38]} e5 {[%emt 0:00:22]} 7. d5 {[%emt 0:01:21]} Na6 {[%emt 0:00:26]} 8. Nd2 {[%emt 0:02:18]} Ne8 {[%emt 0:01:07]} 9. O-O {[%emt 0:02:35]} c5 {[%emt 0:02:49]} 10. dxc6 {[%emt 0:02:57]} bxc6 {[%emt 0:00:32]} 11. Nb3 {[%emt 0:05:29]} Nac7 {[%emt 0:11:11]} 12. Be3 {[%emt 0:21:55]} Be6 {[%emt 0:17:34]} 13. Qd2 {[%emt 0:02:11]} Bf6 {[%emt 0:02:29]} 14. Rfd1 {[%emt 0:08:05]} Be7 {[%emt 0:01:12]} 15. Na5 {[%emt 0:02:50]} Qd7 {[%emt 0:01:49]} 16. c5 {[%emt 0:16:43]} Kh8 {[%emt 0:10:20]} 17. cxd6 {[%emt 0:06:49]} Nxd6 {[%emt 0:00:22]} 18. Nb7 {[%emt 0:02:07]} Nce8 {[%emt 0:00:54]} 19. Nc5 {[%emt 0:01:00]} Qc7 {[%emt 0:02:23]} 20. Nxe6 {[%emt 0:00:09]} fxe6 {[%emt 0:00:05]} 21. f3 {[%emt 0:00:44]} Ng7 {[%emt 0:01:41]} 22. Na4 {[%emt 0:01:32]} Rad8 {[%emt 0:03:34]} 23. Qc3 {[%emt 0:00:37]} Nf7 {[%emt 0:00:31]} 24. Rxd8 {[%emt 0:01:44]} Rxd8 {[%emt 0:00:10]} 25. Rc1 {[%emt 0:00:08]} 1-0